fUSD/lending_fUSD_20250211
["ID","MTS","AMOUNT","RATE_DAILY","PERIOD"]
[352692014,1739243439071,-520.3,0.00011095,2]
[352692016,1739243439081,-500.0,0.00011095,2]
[352692018,1739243439091,-500.0,0.00011095,2]
[352692020,1739243439101,-585.89,0.00011095,2]
[352692022,1739243439111,-527.81,0.00011095,2]
[352692024,1739243439120,-518.08,0.00011095,2]
[352692026,1739243439129,-618.07,0.00011095,2]
[352692028,1739243439139,-500.0,0.00011095,2]
[352692030,1739243439150,-500.0,0.00011095,2]
[352692032,1739243439160,-536.53971781,0.00011095,2]
[352692034,1739243439170,-500.0,0.00011095,2]
[352692036,1739243439180,-500.0,0.00011095,2]
[352692038,1739243439189,-500.0,0.00011095,2]
[352692040,1739243439198,-500.0,0.00011095,2]
[352692042,1739243439208,-688.42,0.00011095,2]
[352692044,1739243439218,-1092.2,0.00011095,2]
[352692046,1739243439227,-500.0,0.00011095,2]
[352692048,1739243439237,-500.0,0.00011095,2]
[352692050,1739243439247,-500.0,0.00011095,2]
[352692052,1739243439256,-568.58,0.00011095,2]
[352692054,1739243439265,-500.0,0.00011095,2]
[352692056,1739243439275,-1473.87,0.00011095,2]
[352692058,1739243439288,-559.6,0.00011095,2]
[352692060,1739243439298,-928.02,0.00011095,2]
[352692062,1739243439312,-500.0,0.00011095,2]
[352692064,1739243439322,-632.3,0.00011095,2]
[352692066,1739243439331,-500.0,0.00011095,2]
[352692068,1739243439340,-507.66,0.00011095,2]
[352692070,1739243439349,-500.0,0.00011095,2]
[352692072,1739243439360,-584.27494188,0.00011095,2]
[352692074,1739243439370,-551.36,0.00011095,2]
[352692076,1739243439380,-500.0,0.00011095,2]
[352692078,1739243439389,-1207.41,0.00011095,2]
[352692080,1739243439399,-693.8,0.00011095,2]
[352692082,1739243439408,-742.18,0.00011095,2]
[352692084,1739243439417,-2020.37,0.00011095,2]
[352692086,1739243439426,-2142.73,0.00011095,2]
[352692088,1739243439436,-682.06,0.00011095,2]
[352692090,1739243439446,-500.0,0.00011095,2]
[352692092,1739243439456,-500.0,0.00011095,2]
[352692094,1739243439465,-580.34,0.00011095,2]
[352692096,1739243439474,-500.0,0.00011095,2]
[352692098,1739243439483,-500.0,0.00011095,2]
[352692100,1739243439493,-1097.22,0.00011095,2]
[352692102,1739243439503,-500.0,0.00011095,2]
[352692104,1739243439513,-1188.37,0.00011095,2]
[352692106,1739243439522,-546.08,0.00011095,2]
[352692108,1739243439532,-751.3,0.00011095,2]
[352692110,1739243439541,-730.22,0.00011095,2]
[352692112,1739243439551,-798.54,0.00011095,2]
[352692114,1739243439560,-500.0,0.00011095,2]
[352692116,1739243439569,-500.0,0.00011095,2]
[352692118,1739243439578,-1323.35,0.00011095,2]
[352692120,1739243439588,-500.0,0.00011095,2]
[352692122,1739243439598,-758.33,0.00011095,2]
[352692123,1739243439611,-712.75,0.00011095,2]
[352692125,1739243439621,-500.0,0.00011095,2]
[352692127,1739243439630,-1167.67,0.00011095,2]
[352692129,1739243439640,-500.0,0.00011095,2]
[352692131,1739243439649,-1125.63,0.00011095,2]
[352692133,1739243439659,-500.0,0.00011095,2]
[352692135,1739243439668,-500.0,0.00011095,2]
[352692137,1739243439678,-1568.05,0.00011095,2]
[352692139,1739243439687,-956.53,0.00011095,2]
[352692141,1739243439696,-500.0,0.00011095,2]
[352692143,1739243439706,-500.0,0.00011095,2]
[352692145,1739243439716,-1000.0,0.00011095,2]
[352692147,1739243439725,-1684.48,0.00011095,2]
[352692149,1739243439734,-880.65,0.00011095,2]
[352692150,1739243439744,-1592.16,0.00011095,2]
[352692153,1739243439754,-515.24,0.00011095,2]
[352692155,1739243439763,-500.0,0.00011095,2]
[352692158,1739243439773,-500.0,0.00011095,2]
[352692161,1739243439783,-851.44,0.00011095,2]
[352692163,1739243439793,-500.0,0.00011095,2]
[352692165,1739243439803,-625.9,0.00011095,2]
[352692167,1739243439813,-1435.65,0.00011095,2]
[352692169,1739243439823,-527.13,0.00011095,2]
[352692171,1739243439833,-1221.9,0.00011095,2]
[352692173,1739243439843,-1540.12,0.00011095,2]
[352692175,1739243439853,-1279.2,0.00011095,2]
[352692177,1739243439862,-1835.44,0.00011095,2]
[352692179,1739243439872,-810.61,0.00011095,2]
[352692181,1739243439881,-1034.4,0.00011095,2]
[352692183,1739243439892,-500.0,0.00011095,2]
[352692185,1739243439903,-1942.98,0.00011095,2]
[352692187,1739243439913,-500.0,0.00011095,2]
[352692189,1739243439923,-1428.04,0.00011095,2]
[352692191,1739243439934,-500.0,0.00011095,2]
[352692193,1739243439944,-1015.75,0.00011095,2]
[352692195,1739243439953,-1408.25,0.00011095,2]
[352692196,1739243439962,-950.27,0.00011095,2]
[352692197,1739243439972,-500.0,0.00011095,2]
[352692198,1739243439981,-500.0,0.00011095,2]
[352692199,1739243439990,-2788.47,0.00011095,2]
[352692200,1739243439999,-2038.43,0.00011095,2]
[352692201,1739243440010,-1095.26,0.00011095,2]
[352692202,1739243440026,-1019.04,0.00011095,2]
[352692203,1739243440036,-724.02,0.00011095,2]
[352692204,1739243440046,-1495.94,0.00011095,2]
[352692205,1739243440055,-945.38,0.00011095,2]
[352692206,1739243440066,-2370.99,0.00011095,2]
[352692207,1739243440076,-1275.55,0.00011095,2]
[352692208,1739243440087,-2670.99,0.00011095,2]
[352692210,1739243440097,-591.75198509,0.00011095,2]
[352692212,1739243440107,-500.0,0.00011095,2]
[352692214,1739243440117,-1646.85,0.00011095,2]
[352692215,1739243440126,-847.47,0.00011095,2]
[352692217,1739243440136,-618.73,0.00011095,2]
[352692219,1739243440146,-636.7,0.00011095,2]
[352692221,1739243440155,-1797.12,0.00011095,2]
[352692224,1739243440165,-500.0,0.00011095,2]
[352692226,1739243440175,-6121.58,0.00011095,2]
[352692228,1739243440184,-500.0,0.00011095,2]
[352692230,1739243440194,-1741.11,0.00011095,2]
[352692232,1739243440204,-1774.15,0.00011095,2]
[352692234,1739243440215,-500.0,0.00011095,2]
[352692235,1739243440226,-500.0,0.00011095,2]
[352692237,1739243440235,-2263.67,0.00011095,2]
[352692239,1739243440244,-933.45,0.00011095,2]
[352692241,1739243440254,-500.0,0.00011095,2]
[352692243,1739243440263,-565.43237402,0.00011095,2]
[352692245,1739243440272,-1068.58,0.00011095,2]
[352692247,1739243440284,-2835.69,0.00011095,2]
[352692249,1739243440293,-873.61,0.00011095,2]
[352692251,1739243440302,-500.0,0.00011095,2]
[352692253,1739243440312,-500.0,0.00011095,2]
[352692255,1739243440322,-1702.45,0.00011095,2]
[352692257,1739243440332,-500.0,0.00011095,2]
[352692259,1739243440341,-1200.54,0.00011095,2]
[352692261,1739243440351,-1866.89,0.00011095,2]
[352692263,1739243440363,-2642.36,0.00011095,2]
[352692265,1739243440373,-1331.65,0.00011095,2]
[352692267,1739243440383,-1533.05,0.00011095,2]
[352692269,1739243440392,-2156.52,0.00011095,2]
[352692271,1739243440402,-1211.45,0.00011095,2]
[352692273,1739243440411,-737.8,0.00011095,2]
[352692275,1739243440420,-500.0,0.00011095,2]
[352692277,1739243440430,-2878.38,0.00011095,2]
[352692279,1739243440440,-3982.82,0.00011095,2]
[352692281,1739243440449,-514.68,0.00011095,2]
[352692283,1739243440458,-500.0,0.00011095,2]
[352692285,1739243440468,-580.16,0.00011095,2]
[352692287,1739243440481,-944.53,0.00011095,2]
[352692289,1739243440490,-611.7,0.00011095,2]
[352692291,1739243440500,-1538.08,0.00011095,2]
[352692293,1739243440509,-631.94,0.00011095,2]
[352692295,1739243440518,-1285.32,0.00011095,2]
[352692297,1739243440528,-3334.24,0.00011095,2]
[352692299,1739243440537,-500.0,0.00011095,2]
[352692301,1739243440547,-500.0,0.00011095,2]
[352692303,1739243440557,-500.0,0.00011095,2]
[352692305,1739243440566,-1566.6,0.00011095,2]
[352692307,1739243440575,-2186.35,0.00011095,2]
[352692309,1739243440585,-2023.57,0.00011095,2]
[352692311,1739243440594,-998.15,0.00011095,2]
[352692313,1739243440604,-977.14,0.00011095,2]
[352692315,1739243440614,-1750.17,0.00011095,2]
[352692317,1739243440623,-789.28,0.00011095,2]
[352692319,1739243440632,-1062.05,0.00011095,2]
[352692321,1739243440641,-500.0,0.00011095,2]
[352692323,1739243440651,-1381.26,0.00011095,2]
[352692325,1739243440660,-1313.96,0.00011095,2]
[352692327,1739243440669,-2726.37,0.00011095,2]
[352692329,1739243440679,-500.0,0.00011095,2]
[352692331,1739243440688,-765.97,0.00011095,2]
[352692333,1739243440698,-500.0,0.00011095,2]
[352692335,1739243440707,-2975.63,0.00011095,2]
[352692337,1739243440717,-507.72,0.00011095,2]
[352692339,1739243440726,-715.15,0.00011095,2]
[352692341,1739243440736,-500.0,0.00011095,2]
[352692343,1739243440745,-4561.34,0.00011095,2]
[352692345,1739243440755,-500.0,0.00011095,2]
[352692347,1739243440765,-2270.84,0.00011095,2]
[352692349,1739243440775,-1603.59,0.00011095,2]
[352692351,1739243440784,-522.72,0.00011095,2]
[352692353,1739243440794,-506.87,0.00011095,2]
[352692355,1739243440804,-500.0,0.00011098,2]
[352692357,1739243440813,-500.0,0.00011098,2]
[352692359,1739243440823,-500.0,0.00011098,2]
[352692361,1739243440832,-500.0,0.00011098,2]
[352692363,1739243440842,-23065.48586037,0.00011099,2]
[352692366,1739243440853,-999.53443596,0.00011099,2]
[352692400,1739243441180,-22065.95142435,0.00011099,2]
[352692402,1739243441190,-23065.48586031,0.00011099,2]
[352692404,1739243441199,-23065.48586031,0.00011099,2]
[352692406,1739243441208,-18277.13462959,0.00011099,2]
[352692408,1739243441217,-18277.13462953,0.00011099,2]
[352692410,1739243441226,-18277.13462953,0.00011099,2]
[352692412,1739243441235,-18277.13462953,0.00011099,2]
[352692414,1739243441244,-18277.13462953,0.00011099,2]
[352692416,1739243441253,-406.98860602,0.00011138,2]
[352692418,1739243441263,-638.0,0.00011173,2]
[352692420,1739243441273,-567.464,0.00011173,2]
[352692422,1739243441284,-507.0,0.00011205,2]
[352692424,1739243441294,-925.45,0.0001123,2]
[352692426,1739243441304,-500.0,0.00011231,2]
[352692428,1739243441314,-500.0,0.00011231,2]
[352692431,1739243441325,-500.0,0.00011231,2]
[352692433,1739243441335,-500.0,0.00011231,2]
[352692435,1739243441344,-500.0,0.00011231,2]
[352692436,1739243441354,-500.0,0.00011231,2]
[352692438,1739243441365,-500.0,0.00011231,2]
[352692439,1739243441374,-500.0,0.00011231,2]
[352692440,1739243441383,-2279.08,0.00011231,2]
[352692441,1739243441392,-971.32,0.00011231,2]
[352692442,1739243441402,-880.59,0.00011231,2]
[352692443,1739243441411,-2986.46,0.00011231,2]
[352692444,1739243441420,-556.28,0.00011231,2]
[352692445,1739243441429,-297.18917526,0.00011231,2]
[352692446,1739243441438,-801.34,0.00011231,2]
[352692447,1739243441447,-538.712884,0.00011232,2]
[352692448,1739243441456,-612.626767,0.00011232,2]
[352692449,1739243441466,-150.868917,0.00011232,2]
[352692450,1739243441476,-500.0,0.00011232,2]
[352692451,1739243441485,-500.0,0.00011232,2]
[352692452,1739243441495,-500.0,0.00011232,2]
[352692453,1739243441504,-627.58100362,0.00011232,2]
[352692454,1739243441515,-500.0,0.00011232,2]
[352692455,1739243441524,-500.0,0.00011232,2]
[352692456,1739243441533,-500.0,0.00011232,2]
[352692457,1739243441543,-924.53,0.00011232,2]
[352692458,1739243441552,-500.0,0.00011232,2]
[352692459,1739243441562,-500.0,0.00011232,2]
[352692460,1739243441571,-500.0,0.00011232,2]
[352692461,1739243441581,-500.0,0.00011232,2]
[352692462,1739243441590,-500.0,0.00011232,2]
[352692463,1739243441599,-1061.18,0.00011232,2]
[352692464,1739243441608,-1525.41,0.00011232,2]
[352692465,1739243441619,-500.0,0.00011232,2]
[352692466,1739243441629,-583.86,0.00011232,2]
[352692467,1739243441638,-947.42,0.00011232,2]
[352692468,1739243441647,-500.0,0.00011232,2]
[352692469,1739243441657,-500.0,0.00011232,2]
[352692470,1739243441666,-500.0,0.00011232,2]
[352692471,1739243441676,-500.0,0.00011232,2]
[352692472,1739243441685,-500.0,0.00011232,2]
[352692473,1739243441695,-456.53100583,0.00011232,2]
[352692474,1739243441704,-1002.91,0.00011232,2]
[352692475,1739243441712,-500.0,0.00011232,2]
[352692476,1739243441722,-500.0,0.00011232,2]
[352692477,1739243441735,-500.0,0.00011232,2]
[352692478,1739243441745,-500.0,0.00011232,2]
[352692479,1739243441754,-500.0,0.00011232,2]
[352692480,1739243441764,-500.0,0.00011232,2]
[352692481,1739243441773,-500.0,0.00011232,2]
[352692482,1739243441783,-500.0,0.00011232,2]
[352692483,1739243441793,-516.13,0.00011232,2]
[352692484,1739243441802,-500.0,0.00011232,2]
[352692485,1739243441813,-500.0,0.00011232,2]
[352692486,1739243441823,-500.0,0.00011232,2]
[352692487,1739243441833,-500.0,0.00011232,2]
[352692488,1739243441843,-500.0,0.00011232,2]
[352692490,1739243441855,-500.0,0.00011232,2]
[352692492,1739243441864,-388.55460016,0.00011232,2]
[352692493,1739243441874,-547.7,0.00011232,2]
[352692494,1739243441884,-500.0,0.00011232,2]
[352692495,1739243441893,-500.0,0.00011232,2]
[352692496,1739243441902,-500.0,0.00011232,2]
[352692497,1739243441911,-500.0,0.00011232,2]
[352692498,1739243441921,-500.0,0.00011232,2]
[352692499,1739243441930,-500.0,0.00011232,2]
[352692500,1739243441940,-674.23,0.00011232,2]
[352692501,1739243441950,-500.0,0.00011232,2]
[352692502,1739243441959,-500.0,0.00011232,2]
[352692503,1739243441970,-500.0,0.00011232,2]
[352692504,1739243441979,-500.0,0.00011232,2]
[352692505,1739243441988,-500.0,0.00011232,2]
[352692506,1739243441997,-500.0,0.00011232,2]
[352692507,1739243442007,-500.0,0.00011232,2]
[352692508,1739243442016,-500.0,0.00011232,2]
[352692509,1739243442025,-600.31,0.00011232,2]
[352692510,1739243442034,-500.0,0.00011232,2]
[352692511,1739243442044,-500.0,0.00011232,2]
[352692512,1739243442053,-500.0,0.00011232,2]
[352692513,1739243442062,-535.99,0.00011232,2]
[352692514,1739243442072,-500.0,0.00011232,2]
[352692515,1739243442081,-500.0,0.00011232,2]
[352692516,1739243442090,-500.0,0.00011232,2]
[352692517,1739243442100,-500.0,0.00011232,2]
[352692518,1739243442112,-355.43925163,0.00011232,2]
[352692519,1739243442122,-500.0,0.00011232,2]
[352692520,1739243442131,-500.0,0.00011232,2]
[352692521,1739243442140,-629.06,0.00011232,2]
[352692522,1739243442150,-500.0,0.00011232,2]
[352692523,1739243442159,-500.0,0.00011232,2]
[352692524,1739243442169,-500.0,0.00011232,2]
[352692525,1739243442178,-500.0,0.00011232,2]
[352692526,1739243442187,-514.91,0.00011232,2]
[352692527,1739243442196,-500.0,0.00011232,2]
[352692528,1739243442205,-500.0,0.00011232,2]
[352692529,1739243442214,-510.28,0.00011232,2]
[352692530,1739243442223,-500.0,0.00011232,2]
[352692531,1739243442233,-517.19,0.00011232,2]
[352692532,1739243442242,-500.0,0.00011232,2]
[352692533,1739243442251,-500.0,0.00011232,2]
[352692534,1739243442261,-500.0,0.00011232,2]
[352692535,1739243442270,-500.0,0.00011232,2]
[352692536,1739243442280,-370.84200503,0.00011232,2]
[352692537,1739243442294,-500.0,0.00011232,2]
[352692538,1739243442303,-500.0,0.00011232,2]
[352692539,1739243442312,-500.0,0.00011232,2]
[352692540,1739243442321,-500.0,0.00011232,2]
[352692541,1739243442330,-647.89,0.00011232,2]
[352692542,1739243442339,-500.0,0.00011232,2]
[352692543,1739243442348,-500.0,0.00011232,2]
[352692544,1739243442358,-500.0,0.00011232,2]
[352692545,1739243442368,-500.0,0.00011232,2]
[352692546,1739243442379,-500.0,0.00011232,2]
[352692547,1739243442388,-574.67,0.00011232,2]
[352692548,1739243442397,-635.07,0.00011232,2]
[352692549,1739243442406,-500.0,0.00011232,2]
[352692550,1739243442416,-500.0,0.00011232,2]
[352692551,1739243442426,-500.0,0.00011232,2]
[352692552,1739243442435,-500.0,0.00011232,2]
[352692553,1739243442445,-500.0,0.00011232,2]
[352692554,1739243442454,-500.0,0.00011232,2]
[352692555,1739243442463,-500.0,0.00011232,2]
[352692556,1739243442472,-500.0,0.00011232,2]
[352692557,1739243442482,-500.0,0.00011232,2]
[352692558,1739243442492,-500.0,0.00011232,2]
[352692559,1739243442501,-662.05,0.00011232,2]
[352692560,1739243442510,-620.18,0.00011232,2]
[352692561,1739243442519,-538.62,0.00011232,2]
[352692562,1739243442529,-500.0,0.00011232,2]
[352692563,1739243442538,-651.26,0.00011232,2]
[352692564,1739243442549,-500.0,0.00011232,2]
[352692565,1739243442558,-500.0,0.00011232,2]
[352692566,1739243442567,-500.0,0.00011232,2]
[352692567,1739243442577,-500.0,0.00011232,2]
[352692568,1739243442587,-500.0,0.00011232,2]
[352692570,1739243442596,-500.0,0.00011232,2]
[352692571,1739243442607,-676.43,0.00011232,2]
[352692573,1739243442616,-500.0,0.00011232,2]
[352692575,1739243442626,-500.0,0.00011232,2]
[352692576,1739243442634,-520.3,0.00011232,2]
[352692577,1739243442643,-504.79363934,0.00011232,2]
[352692578,1739243442652,-521.94890409,0.00011232,2]
[352692580,1739243442662,-585.89,0.00011232,2]
[352692582,1739243442671,-527.81,0.00011232,2]
[352692583,1739243442679,-518.08,0.00011232,2]
[352692584,1739243442689,-618.07,0.00011232,2]
[352692585,1739243442698,-500.0,0.00011232,2]
[352692586,1739243442707,-500.0,0.00011232,2]
[352692587,1739243442716,-403.38369486,0.00011232,2]
[352692589,1739243442725,-500.0,0.00011232,2]
[352692591,1739243442734,-500.0,0.00011232,2]
[352692592,1739243442743,-500.0,0.00011232,2]
[352692593,1739243442753,-688.42,0.00011232,2]
[352692594,1739243442761,-1092.2,0.00011232,2]
[352692595,1739243442770,-500.0,0.00011232,2]
[352692596,1739243442779,-500.0,0.00011232,2]
[352692597,1739243442788,-500.0,0.00011232,2]
[352692598,1739243442798,-568.58,0.00011232,2]
[352692599,1739243442807,-500.0,0.00011232,2]
[352692600,1739243442816,-1473.87,0.00011232,2]
[352692601,1739243442825,-559.6,0.00011232,2]
[352692602,1739243442835,-928.02,0.00011232,2]
[352692603,1739243442844,-500.0,0.00011232,2]
[352692604,1739243442855,-632.3,0.00011232,2]
[352692605,1739243442863,-500.0,0.00011232,2]
[352692606,1739243442872,-507.66,0.00011232,2]
[352692607,1739243442881,-500.0,0.00011232,2]
[352692608,1739243442891,-551.36,0.00011232,2]
[352692609,1739243442900,-500.0,0.00011232,2]
[352692610,1739243442909,-1207.41,0.00011232,2]
[352692611,1739243442918,-693.8,0.00011232,2]
[352692612,1739243442927,-742.18,0.00011232,2]
[352692613,1739243442936,-2020.37,0.00011232,2]
[352692614,1739243442946,-2142.73,0.00011232,2]
[352692615,1739243442955,-682.06,0.00011232,2]
[352692616,1739243442964,-500.0,0.00011232,2]
[352692617,1739243442973,-500.0,0.00011232,2]
[352692618,1739243442982,-580.34,0.00011232,2]
[352692619,1739243442991,-500.0,0.00011232,2]
[352692620,1739243443000,-500.0,0.00011232,2]
[352692621,1739243443009,-1097.22,0.00011232,2]
[352692622,1739243443018,-500.0,0.00011232,2]
[352692623,1739243443028,-1188.37,0.00011232,2]
[352692624,1739243443037,-546.08,0.00011232,2]
[352692625,1739243443046,-751.3,0.00011232,2]
[352692626,1739243443055,-730.22,0.00011232,2]
[352692627,1739243443064,-798.54,0.00011232,2]
[352692628,1739243443073,-500.0,0.00011232,2]
[352692629,1739243443082,-500.0,0.00011232,2]
[352692630,1739243443091,-1323.35,0.00011232,2]
[352692631,1739243443102,-385.01462551,0.00011232,2]
[352692632,1739243443111,-758.33,0.00011232,2]
[352692633,1739243443120,-712.75,0.00011232,2]
[352692634,1739243443129,-443.0843587,0.00011232,2]
[352692635,1739243443139,-1167.67,0.00011232,2]
[352692636,1739243443148,-500.0,0.00011232,2]
[352692637,1739243443157,-1125.63,0.00011232,2]
[352692638,1739243443166,-500.0,0.00011232,2]
[352692639,1739243443175,-500.0,0.00011232,2]
[352692640,1739243443184,-1568.05,0.00011232,2]
[352692641,1739243443193,-956.53,0.00011232,2]
[352692642,1739243443202,-500.0,0.00011232,2]
[352692643,1739243443211,-500.0,0.00011232,2]
[352692644,1739243443219,-1000.0,0.00011232,2]
[352692645,1739243443228,-1684.48,0.00011232,2]
[352692646,1739243443237,-880.65,0.00011232,2]
[352692647,1739243443246,-1592.16,0.00011232,2]
[352692648,1739243443255,-515.24,0.00011232,2]
[352692649,1739243443264,-500.0,0.00011232,2]
[352692650,1739243443273,-500.0,0.00011232,2]
[352692651,1739243443286,-851.44,0.00011232,2]
[352692652,1739243443295,-500.0,0.00011232,2]
[352692653,1739243443304,-625.9,0.00011232,2]
[352692654,1739243443313,-1435.65,0.00011232,2]
[352692655,1739243443322,-527.13,0.00011232,2]
[352692656,1739243443333,-1221.9,0.00011232,2]
[352692657,1739243443343,-1540.12,0.00011232,2]
[352692658,1739243443353,-1279.2,0.00011232,2]
[352692659,1739243443363,-1835.44,0.00011232,2]
[352692660,1739243443371,-810.61,0.00011232,2]
[352692661,1739243443380,-1034.4,0.00011232,2]
[352692662,1739243443389,-500.0,0.00011232,2]
[352692663,1739243443398,-1942.98,0.00011232,2]
[352692664,1739243443407,-500.0,0.00011232,2]
[352692665,1739243443416,-1428.04,0.00011232,2]
[352692666,1739243443424,-500.0,0.00011232,2]
[352692667,1739243443433,-1015.75,0.00011232,2]
[352692668,1739243443442,-1408.25,0.00011232,2]
[352692669,1739243443453,-950.27,0.00011232,2]
[352692670,1739243443462,-500.0,0.00011232,2]
[352692671,1739243443470,-500.0,0.00011232,2]
[352692672,1739243443479,-2788.47,0.00011232,2]
[352692673,1739243443488,-2038.43,0.00011232,2]
[352692674,1739243443497,-1095.26,0.00011232,2]
[352692675,1739243443506,-1019.04,0.00011232,2]
[352692676,1739243443515,-724.02,0.00011232,2]
[352692677,1739243443524,-1495.94,0.00011232,2]
[352692678,1739243443533,-945.38,0.00011232,2]
[352692680,1739243443542,-2370.99,0.00011232,2]
[352692681,1739243443551,-1275.55,0.00011232,2]
[352692682,1739243443561,-2670.99,0.00011232,2]
[352692683,1739243443569,-500.0,0.00011232,2]
[352692684,1739243443578,-1646.85,0.00011232,2]
[352692685,1739243443587,-217.83077512,0.00011232,2]
[352692686,1739243443669,-629.63922488,0.00011232,2]
[352692687,1739243443678,-618.73,0.00011232,2]
[352692688,1739243443687,-636.7,0.00011232,2]
[352692689,1739243443696,-1797.12,0.00011232,2]
[352692690,1739243443705,-500.0,0.00011232,2]
[352692691,1739243443714,-1182.96819103,0.00011232,2]
[352692692,1739243443725,-2050.14889253,0.00011232,2]
[352692693,1739243443736,-289.74901597,0.00011232,2]
[352692694,1739243443747,-308.13345431,0.00011232,2]
[352692695,1739243443758,-529.25076049,0.00011232,2]
[352692696,1739243443769,-1761.32968567,0.00011232,2]
[352692697,1739243443778,-500.0,0.00011232,2]
[352692698,1739243443787,-1741.11,0.00011232,2]
[352692699,1739243443796,-500.0,0.00011232,2]
[352692700,1739243443805,-1774.15,0.00011232,2]
[352692701,1739243443814,-500.0,0.00011232,2]
[352692702,1739243443823,-2263.67,0.00011232,2]
[352692703,1739243443832,-421.24031433,0.00011232,2]
[352692704,1739243444802,-500.0,0.00010958,2]
[352692705,1739243444812,-500.0,0.00010958,2]
[352692706,1739243444822,-500.0,0.00010958,2]
[352692707,1739243444831,-500.0,0.00010958,2]
[352692708,1739243444842,-500.0,0.00011095,2]
[352692709,1739243444851,-500.0,0.00011095,2]
[352692710,1739243444860,-500.0,0.00011095,2]
[352692711,1739243444870,-500.0,0.00011095,2]
[352692712,1739243444879,-512.20968567,0.00011232,2]
[352692713,1739243444889,-500.0,0.00011232,2]
[352692714,1739243444899,-1068.58,0.00011232,2]
[352692715,1739243444909,-2835.69,0.00011232,2]
[352692716,1739243444918,-523.52031433,0.00011232,2]
[352692717,1739243444930,-350.08968567,0.00011232,2]
[352692718,1739243444940,-500.0,0.00011232,2]
[352692719,1739243444950,-1702.45,0.00011232,2]
[352692720,1739243444959,-500.0,0.00011232,2]
[352692721,1739243444969,-500.0,0.00011232,2]
[352692722,1739243444979,-1200.54,0.00011232,2]
[352692723,1739243444988,-1866.89,0.00011232,2]
[352692724,1739243444998,-2642.36,0.00011232,2]
[352692725,1739243445008,-364.67031432,0.00011232,2]
[352692726,1739243445020,-966.97968568,0.00011232,2]
[352692727,1739243445030,-1252.55399132,0.00011232,2]
[352692728,1739243445042,-252.90102083,0.00011232,2]
[352692729,1739243445054,-27.59498785,0.00011232,2]
[352692730,1739243445064,-897.40501215,0.00011232,2]
[352692731,1739243445075,-712.33,0.00011232,2]
[352692732,1739243445087,-546.78498785,0.00011232,2]
[352692733,1739243445097,-1211.45,0.00011232,2]
[352692734,1739243445108,-737.8,0.00011232,2]
[352692735,1739243445118,-500.0,0.00011232,2]
[352692736,1739243445127,-2878.38,0.00011232,2]
[352692737,1739243445137,-3982.82,0.00011232,2]
[352692738,1739243445147,-514.68,0.00011232,2]
[352692739,1739243445156,-500.0,0.00011232,2]
[352692740,1739243445166,-580.16,0.00011232,2]
[352692741,1739243445175,-944.53,0.00011232,2]
[352692742,1739243445185,-611.7,0.00011232,2]
[352692743,1739243445194,-1538.08,0.00011232,2]
[352692744,1739243445204,-631.94,0.00011232,2]
[352692745,1739243445214,-1285.32,0.00011232,2]